Cogmind - Beta 13 @@@ ROGUE MODE // 2024.04.03 @ 21:47:26 Player: Johge Result: Destroyed by L-41 Fighter with Axe Performance ------------- Evolutions (4) 2000 Regions Visited (5) 1000 Robots Destroyed (63) 315 Value Destroyed (2516) 2516 Prototype IDs (1) 20 Alien Tech Used (0) 0 Bonus (0) 0 TOTAL SCORE: 5851 Bonus ------- None Cogmind --------- Core Integrity 0/850 Matter 96/300 Energy 87/100 System Corruption 1% Temperature Cool (0) Movement Walking (360) Ox3 Location -6/Factory Parts ------- > --- POWER (2) -------- (None) > --- PROPULSION (5) --- VSS Leg > --- UTILITY (5) ------ Coolant Injector High-capacity Storage Unit Advanced Signal Interpreter > --- WEAPON (3) ------- (None) > --- INVENTORY (20) --- (None) Peak State ------------ > --- POWER ------------ Cooled Deuterium Engine Cooled Deuterium Engine > --- PROPULSION ------- Aluminum Leg Aluminum Leg Titanium Leg Improved Carbon-fiber Leg > --- UTILITY ---------- Coolant Injector High-capacity Storage Unit Signal Interpreter Hardened Medium Armor Plating Long-range Tractor Beam > --- WEAPON ----------- Minigun Advanced Assault Cannon Advanced Assault Cannon > --- INVENTORY -------- Improved Ion Engine Light Deuterium Engine Cooled Deuterium Engine Improved Heat Sink Small Laser Ion Cannon Ion Cannon Heavy Assault Rifle Grenade Launcher Mini Grenade Launcher Heavy Rocket Launcher Heavy Rocket Launcher [Rating: 45] Favorites ----------- Power Cooled Deuterium Engine Engine Cooled Deuterium Engine Propulsion Aluminum Leg Leg Aluminum Leg Utility High-capacity Storage Unit Device Coolant Injector Storage High-capacity Storage Unit Processor Signal Interpreter Hackware Hacking Suite Protection Hardened Medium Armor Plating Weapon Advanced Assault Cannon Energy Gun Small Laser Energy Cannon Ion Cannon Ballistic Gun Minigun Ballistic Cannon Advanced Assault Cannon Launcher Heavy Rocket Launcher Build | -11 -10 -9 -8 -7 -6 ------- Run | Yrd Mat Mat Mat Fac Fac Slots Evolved 8 | . . 2 2 2 2 Power 1 | . . . . 1 . Propulsion 3 | . . 2 . . 1 Utility 3 | . . . 2 1 . Weapon 1 | . . . . . 1 Parts Attached 66 | 6 5 14 11 10 20 Power 8 | 1 1 1 1 1 3 Engine 8 | 1 1 1 1 1 3 Core . | . . . . . . Reactor . | . . . . . . Propulsion 21 | 2 . 8 4 3 4 Treads . | . . . . . . Leg 21 | 2 . 8 4 3 4 Wheel . | . . . . . . Hover . | . . . . . . Flight . | . . . . . . Utility 16 | 1 3 1 3 6 2 Device 6 | . . . 1 4 1 Storage 4 | 1 2 1 . . . Processor 3 | . 1 . 1 . 1 Hackware 1 | . . . 1 . . Protection 2 | . . . . 2 . Artifact . | . . . . . . Weapon 21 | 2 1 4 3 . 11 Energy Gun 6 | 2 . 1 . . 3 Energy Cannon 3 | . . 1 . . 2 Ballistic Gun 5 | . 1 1 2 . 1 Ballistic Cannon 2 | . . . 1 . 1 Launcher 5 | . . 1 . . 4 Special Weapon . | . . . . . . Impact Weapon . | . . . . . . Slashing Weapon . | . . . . . . Piercing Weapon . | . . . . . . Special Melee Weapon . | . . . . . . Unidentified Prototypes 1 | . . . 1 . . Parts Lost 39 | . . . 6 5 28 Power 5 | . . . . . 5 Propulsion 12 | . . . 3 2 7 Utility 9 | . . . 2 3 4 Weapon 13 | . . . 1 . 12 Highest Loss Streak 13 | . . . 4 3 13 To Critical Strikes 1 | . . . . . 1 Average Slot Usage (%) 86 | . 99 100 93 91 64 Engine 11 | . 14 11 9 15 9 Leg 27 | . 28 44 32 27 12 Device 5 | . . . 5 7 9 Storage 8 | . 14 11 9 7 6 Processor 7 | . 13 11 9 7 2 Hackware 2 | . . . 9 3 . Protection 1 | . . . . 4 2 Energy Gun 5 | . 17 5 . . 5 Energy Cannon 2 | . . 5 7 . 1 Ballistic Gun 7 | . 10 11 9 7 3 Ballistic Cannon 3 | . . . 1 7 6 Naked Turns . | . . . . . . Heaviest Build 87 | 12 30 56 60 81 87 Greatest Support 62 | 20 20 60 62 55 55 Greatest Overweight (x) 22 | 1 1 . 1 1 22 Average Overweight (x) . | . . . . 1 3 Largest Inventory Capacity 20 | 8 15 20 20 20 20 Average Capacity 18 | 6 10 18 20 20 20 Most Carried 19 | 2 12 18 19 17 12 Average Carried 11 | . 4 14 17 14 9 Final Capacity 20 | 8 15 20 20 20 20 Final Carried 18 | . 12 18 18 13 . Class Distribution -------------------- 73% | Mutant 14% | Tank 11% | Gunner Dominant Class ---------------- Mutant | -10/Materials Mutant | -9/Materials Mutant | -8/Materials Mutant | -7/Factory Tank | -6/Factory Resources | -11 -10 -9 -8 -7 -6 ----------- Run | Yrd Mat Mat Mat Fac Fac Matter Collected 1481 | 170 168 333 183 180 447 Remotely 203 | . . . . 41 162 Salvage Created 2009 | . 185 801 363 178 482 Parts 113 | . 16 47 10 17 23 Haulers Intercepted . | . . . . . . Recyclers Shooed 1 | . . . . . 1 Parts Field Recycled . | . . . . . . Retrieved Matter . | . . . . . . Parts Self-Destructed . | . . . . . . Prevented . | . . . . . . Kills | -11 -10 -9 -8 -7 -6 ------- Run | Yrd Mat Mat Mat Fac Fac Combat Hostiles Destroyed 58 | . 8 18 7 6 19 Guns 23 | . 8 9 1 2 3 Cannons 23 | . . 7 6 4 6 AOE 12 | . . 2 . . 10 Classes Destroyed 11 | . 3 3 1 1 3 Builder 2 | . . . . . 2 Operator 1 | . 1 . . . . Watcher 2 | . . 1 1 . . Swarmer 13 | . 6 . . 4 3 Grunt 18 | . 2 10 4 . 2 Brawler 3 | . . 3 . . . Protector 2 | . . . . . 2 Sentry 8 | . . 5 1 1 1 Specialist 2 | . . . . . 2 Hunter 9 | . . . 2 . 7 Programmer 3 | . . . . 1 2 Best Kill Streak 9 | . 6 5 3 4 9 Combat Bots Only 9 | . 6 5 3 4 9 Max Kills in Single Turn 5 | . 1 2 1 1 5 Gunslinging . | . . . . . . Exploded 5 | . . 1 . . 5 Melee . | . . . . . . Uniques/NPCs Destroyed . | . . . . . . Combat | -11 -10 -9 -8 -7 -6 -------- Run | Yrd Mat Mat Mat Fac Fac Hostile Shots Fired 560 | . 37 85 60 76 302 Missed 155 | . 4 24 15 26 86 Damage Taken 5629 | . 265 764 710 653 3237 Core 1114 | . 42 87 53 53 879 Absorbed by Shields 35 | . . . . 35 . Core Remaining (%) 88 | 100 83 78 90 92 . Volleys Fired 182 | . 18 59 38 12 55 Largest 3 | . 2 2 2 2 3 Hottest 169 | . 80 83 83 73 169 Shots Fired 391 | . 36 118 75 24 138 Gun 236 | . 36 95 37 12 56 Cannon 144 | . . 21 38 12 73 Launcher 11 | . . 2 . . 9 Special . | . . . . . . Kinetic 226 | . 17 59 41 24 85 Thermal 154 | . 19 57 34 . 44 Explosive 11 | . . 2 . . 9 Electromagnetic . | . . . . . . Robot Hit Streak 22 | . 4 22 13 6 9 Robot Miss Streak 6 | . 4 4 6 3 6 Penetration Max . | . . . . . . Secondary Targets 2 | . 1 1 . . . Max Gunslinging Chain 1 | . 1 1 . . . Shots Hit Robots 236 | . 20 79 47 13 77 Core Hits 121 | . 12 29 16 7 57 Critical Kills . | . . . . . . Critical Parts Destroyed . | . . . . . . Critical Strikes 1 | . . . . . 1 Blast 1 | . . . . . 1 Melee Attacks . | . . . . . . Impact . | . . . . . . Slashing . | . . . . . . Piercing . | . . . . . . Sneak Attacks . | . . . . . . Combat Hostiles . | . . . . . . Follow-up Attacks . | . . . . . . Damage Inflicted 6388 | . 273 1448 872 312 3483 Guns 1914 | . 258 796 295 123 442 Cannons 2138 | . . 415 576 189 958 Explosions 2225 | . . 186 . . 2039 Melee . | . . . . . . Ramming 111 | . 15 51 1 . 44 Kinetic 2293 | . 146 543 370 312 922 Thermal 1759 | . 112 668 501 . 478 Explosive 2225 | . . 186 . . 2039 Electromagnetic . | . . . . . . Impact . | . . . . . . Slashing . | . . . . . . Piercing . | . . . . . . Highest Corruption 1 | . . . . . 1 Average Corruption 1 | . . . . . 1 Corruption Purged . | . . . . . . Corruption Blocked . | . . . . . . Effects 1 | . . . . . 1 Data Loss (major) 1 | . . . . . 1 Overload Shots . | . . . . . . Overflow Damage 36 | . . . 3 3 30 Projectiles 9 | . . . 3 3 3 Explosions 27 | . . . . . 27 Melee . | . . . . . . Knockbacks 13 | . . . . 1 12 Impact 1 | . . . . . 1 Kinetic 10 | . . . . 1 9 Secondary 2 | . . . . . 2 Self-Inflicted Damage 116 | . . . . . 116 Shots 3 | . . . . . 3 Rammed . | . . . . . . Targets Rammed 16 | . 3 6 1 . 6 Kicked 16 | . 3 6 1 . 6 Crushed . | . . . . . . Highest Temperature 197 | . 18 85 149 67 197 Average Temperature 54 | . 4 30 63 21 82 Received Heat Transfer 875 | . 12 303 171 56 333 Siege Activations . | . . . . . . Robots Corrupted . | . . . . . . Combat Hostiles . | . . . . . . Parts Fried . | . . . . . . Impact Corruptions . | . . . . . . Robots Melted . | . . . . . . Combat Hostiles . | . . . . . . Parts Melted 6 | . . 2 4 . . Heat Transferred 3122 | . 250 1241 814 . 817 Parts Sabotaged . | . . . . . . Parts Stolen . | . . . . . . Parts Stripped . | . . . . . . Power Chain Reactions . | . . . . . . Alert | -11 -10 -9 -8 -7 -6 ------- Run | Yrd Mat Mat Mat Fac Fac Peak Influence 396 | . 242 396 172 139 251 Initial 118 | . . 24 118 38 22 Average 95 | . 102 193 90 53 56 Maximum Alert Level 1 | . 1 1 . . 1 Low Security (%) 85 | 100 78 49 100 100 97 Level 1 14 | . 21 50 . . 2 Level 2 . | . . . . . . Level 3 . | . . . . . . Level 4 . | . . . . . . Level 5 . | . . . . . . High Security . | . . . . . . Max Security . | . . . . . . Squads Dispatched 12 | . 2 2 2 1 5 Investigation 3 | . 1 1 1 . . Extermination 2 | . . . . . 2 Reinforcement 6 | . 1 1 1 1 2 Assault . | . . . . . . Garrison 1 | . . . . . 1 Intercept . | . . . . . . Searches Triggered . | . . . . . . Construction Impeded 2 | . . . . . 2 Haulers Reinforced . | . . . . . . Active Scanning Responses . | . . . . . . Cargo Convoy Interrupts 1 | . . . . . 1 Stealth | -11 -10 -9 -8 -7 -6 --------- Run | Yrd Mat Mat Mat Fac Fac Distress Signals 2 | . . 1 1 . . Communications Jammed . | . . . . . . Distress Signals . | . . . . . . Times Spotted 87 | . 13 24 14 7 29 Peak Tracking Total 13 | . 6 5 5 4 13 Tactical Retreats 4 | . 1 . 1 . 2 Traps | -11 -10 -9 -8 -7 -6 ------- Run | Yrd Mat Mat Mat Fac Fac Traps Triggered 2 | . 1 1 . . . Indirectly . | . . . . . . Trap Hack Attempts . | . . . . . . Triggered . | . . . . . . Disarmed . | . . . . . . Reprogrammed . | . . . . . . Reused . | . . . . . . Traps Extracted . | . . . . . . Installed . | . . . . . . Triggered . | . . . . . . Machines | -11 -10 -9 -8 -7 -6 ---------- Run | Yrd Mat Mat Mat Fac Fac Machines Disabled 7 | . . . 2 . 5 Max in Single Turn 1 | . . . 1 . 1 Garrison Access 1 | . . . 1 . . Machines Repaired . | . . . . . . Machines Dismantled . | . . . . . . Machines Sabotaged . | . . . . . . Overloaded Fab Kills . | . . . . . . Hacking | -11 -10 -9 -8 -7 -6 --------- Run | Yrd Mat Mat Mat Fac Fac Machines Accessed 12 | . 2 6 4 . . Terminals 10 | . 2 5 3 . . Fabricators . | . . . . . . Repair Stations . | . . . . . . Recycling Units . | . . . . . . Scanalyzers 1 | . . 1 . . . Garrison Access 1 | . . . 1 . . Total Hacks 33 | . 4 18 11 . . Successful 17 | . 3 8 6 . . Failed 16 | . 1 10 5 . . Catastrophic 1 | . . . 1 . . Database Lockouts . | . . . . . . Manual 1 | . . 1 . . . Terminals 29 | . 4 16 9 . . Fabricators . | . . . . . . Repair Stations . | . . . . . . Recycling Units . | . . . . . . Scanalyzers 2 | . . 2 . . . Garrison Access 2 | . . . 2 . . Terminal Hacks 14 | . 3 6 5 . . Record 2 | . 1 . 1 . . Level Access Points 1 | . . . 1 . . Branch Access Points 2 | . 1 1 . . . Alert Level 2 | . . 2 . . . Unreport Threat 2 | . . 1 1 . . Surveillance Status 1 | . . . 1 . . Reinforcement Status 1 | . . 1 . . . Zone Layout 3 | . 1 1 1 . . Fabricator Hacks . | . . . . . . Repair Station Hacks . | . . . . . . Recycling Unit Hacks . | . . . . . . Scanalyzer 2 | . . 2 . . . Insert Component 1 | . . 1 . . . Analyze 1 | . . 1 . . . Garrison Access Hacks 1 | . . . 1 . . Seal Access 1 | . . . 1 . . Unauthorized Hacks . | . . . . . . Terminals . | . . . . . . Fabricators . | . . . . . . Repair Stations . | . . . . . . Recycling Units . | . . . . . . Scanalyzers . | . . . . . . Garrison Access . | . . . . . . Data Cores Recovered . | . . . . . . Used . | . . . . . . Hacking Detections 9 | . 1 5 3 . . Full Trace Events 3 | . . 2 1 . . Feedback Events . | . . . . . . Feedback Blocked . | . . . . . . Robot Schematics Acquired . | . . . . . . Robots Built . | . . . . . . Authchips . | . . . . . . Time . | . . . . . . Total Robot Build Rating . | . . . . . . Part Schematics Acquired 1 | . . 1 . . . Parts Built . | . . . . . . Authchips . | . . . . . . Time . | . . . . . . Total Part Build Rating . | . . . . . . Parts Repaired . | . . . . . . Time . | . . . . . . Parts Recycled . | . . . . . . Recycled Matter . | . . . . . . Retrieved Matter . | . . . . . . Retrieved Components . | . . . . . . Parts Scanalyzed 1 | . . 1 . . . Part Schematics Acquired 1 | . . 1 . . . Parts Damaged . | . . . . . . Bothacking | -11 -10 -9 -8 -7 -6 ------------ Run | Yrd Mat Mat Mat Fac Fac Used RIF Installer . | . . . . . . Robots Hacked . | . . . . . . Non-combat . | . . . . . . Combat . | . . . . . . Robot Hacks Applied . | . . . . . . Relay Couplers Released . | . . . . . . Fabnet Peak Effective % . | . . . . . . Robots Rewired . | . . . . . . Allies Hacked . | . . . . . . Hacks Repelled . | . . . . . . Allies | -11 -10 -9 -8 -7 -6 -------- Run | Yrd Mat Mat Mat Fac Fac Total Allies . | . . . . . . Largest Group . | . . . . . . Highest-Rated Group . | . . . . . . Highest-Rated Ally . | . . . . . . Total Orders . | . . . . . . Ally Attacks . | . . . . . . Total Damage . | . . . . . . Kills . | . . . . . . Allies Corrupted . | . . . . . . Allies Melted . | . . . . . . Intel | -11 -10 -9 -8 -7 -6 ------- Run | Yrd Mat Mat Mat Fac Fac Robot Analysis Total . | . . . . . . Derelict Logs Recovered . | . . . . . . Drone Launches . | . . . . . . Drone Recoveries . | . . . . . . Exploration | -11 -10 -9 -8 -7 -6 ------------- Run | Yrd Mat Mat Mat Fac Fac Turns Passed 3454 | 61 449 732 559 587 1066 Spaces Moved 1581 | 45 285 415 287 273 276 Core 43 | 10 . . . . 33 Treads . | . . . . . . Legs 1538 | 35 285 415 287 273 243 Wheels . | . . . . . . Hover . | . . . . . . Flight . | . . . . . . Fastest Speed 50 | 50 120 120 120 192 90 Average Speed 170 | 111 128 120 137 192 311 Slowest Speed 1150 | 120 190 120 195 193 1150 Overloaded Moves . | . . . . . . Propulsion Burnouts . | . . . . . . Robots Hopped . | . . . . . . Cave-ins Triggered . | . . . . . . Exploration Rate (%) 23 | 3 45 46 32 10 6 Regions Visited 5 Branch Regions . Pre-discovered Areas . | . . . . . . Known Exits Taken 4 | . 1 1 1 1 . Unknown Exits Taken 1 | 1 . . . . . Scrap Searched . | . . . . . . Spaces Dug . | . . . . . . Terrain Destroyed 65 | . . 21 3 2 39 Melee . | . . . . . . Projectile 17 | . . 2 3 2 10 AOE 48 | . . 19 . . 29 Terrain Rammed . | . . . . . . Walls Destroyed . | . . . . . . Machines Disabled . | . . . . . . Actions | -11 -10 -9 -8 -7 -6 --------- Run | Yrd Mat Mat Mat Fac Fac Total 1975 | 56 332 530 378 314 365 Wait 56 | . 3 13 27 11 2 Move 1576 | 44 284 414 286 272 276 Hop . | . . . . . . Pick Up 61 | 6 16 16 11 6 6 Fast Attach . | . . . . . . Attach 43 | 6 1 2 7 8 19 Detach . | . . . . . . Swap 23 | . 4 12 4 2 1 Drop 18 | . 3 8 4 3 . Fire 182 | . 18 59 38 12 55 Melee . | . . . . . . Ram . | . . . . . . Kick 16 | . 3 6 1 . 6 Crush . | . . . . . . Escape Stasis . | . . . . . . Rewire . | . . . . . . Trap . | . . . . . . Miscellaneous . | . . . . . . Route ------- -11/Scrapyard -10/Materials (discovered 2 exits: *Mat / Min) -9/Materials (discovered 4 exits: *Mat / Min / *Sto x2) -8/Materials (discovered 3 exits: *Fac x3) -7/Factory -6/Factory History --------- Turn | Location | Event 26 | -11/Scrapyard | Discovered new exit (range 15) 62 | -11/Scrapyard | Entered Materials 116 | -10/Materials | Identified exit to Mines 336 | -10/Materials | Build established: Mutant 470 | -10/Materials | Discovered new exit (range 8) 509 | -10/Materials | Identified exit to Materials 511 | -10/Materials | Entered another Materials area 511 | -9/Materials | Evolved 2 slots: Propulsion x2 667 | -9/Materials | Identified exit to Mines 667 | -9/Materials | Identified exit to Storage 1230 | -9/Materials | Discovered new exit (range 9) 1239 | -9/Materials | Identified exit to Materials 1243 | -9/Materials | Entered another Materials area 1243 | -8/Materials | Evolved 2 slots: Utility x2 1557 | -8/Materials | Discovered new exit (range 13) 1557 | -8/Materials | Identified exit to Factory 1643 | -8/Materials | Lost 4 parts (2n1u1w) 1802 | -8/Materials | Entered Factory 1802 | -7/Factory | Evolved 2 slots: Power x1, Utility x1 2147 | -7/Factory | Lost 3 parts (1n2u) 2337 | -7/Factory | Discovered new exit (range 11) 2387 | -7/Factory | Identified exit to Factory 2389 | -7/Factory | Entered another Factory area 2389 | -6/Factory | Evolved 2 slots: Propulsion x1, Weapon x1 2695 | -6/Factory | Build established: Tank 2793 | -6/Factory | Spotted B-75 Beast 2966 | -6/Factory | Lost 5 parts (1n2u2w) 3023 | -6/Factory | Lost 4 parts (1p1n2w) 3325 | -6/Factory | Build established: Gunner 3414 | -6/Factory | Cargo convoy interrupted 3422 | -6/Factory | Core integrity fell below 50% 3424 | -6/Factory | Garrison activated, responded to threat 3444 | -6/Factory | Core integrity fell below 20% 3455 | -6/Factory | Destroyed by L-41 Fighter with Axe Last Messages --------------- The unstable cave ceiling collapses. U-05 Engineer builds a Wall. Hvy. Assault Rifle destroyed. U-05 Engineer lays Concrete. VSS Leg destroyed. Kicked L-41 Fighter out of the way. U-05 Engineer lays Concrete. Chain reaction triggered in Imp. Deuterium Engine. VSS Leg destroyed. U-05 Engineer destroyed. P-60 Hacker destroyed. B-48 Gladiator destroyed. U-05 Engineer lays Concrete. Sml. Laser destroyed. Kicked L-41 Fighter. U-05 Engineer lays Concrete. R-10 Processor collects Shock Rifle. U-05 Engineer lays Concrete. U-05 Engineer builds a Wall. Map ----- +----------------------------------------------------+ | ?????????????????????????????????????????????????? | | ?????????????????????????????????????????????????? | | ?????????????????????????????????????????????????? | | ?????????????????????????????????????????????????? | | ?????????????????????????????????????????????????? | | ?????????????????????????????????????????????????? | | ?????????????????????????????????????????????????? | | ?????????????????????????????????????????????????? | | ?????????????????????????????????????????????????? | | ?????????????????????????????????????????????????? | | ?????????????????????????????????????????????????? | | ?????????????????????########## ???????????????? | | ????????????????????# # ???????????????? | | ????????????????????# ###+######?###??#??? | | ????????????????????# ? ?? ??? | | ????????????????????# ? ??? | | ????????????????????+ % """ """ "?? | | ????????????????????# % ^ """ """ ""? | | ????????????????????? !! """ """ """ | | ????????????????????? % """^""" """ | | ?????????????????????? %% ^ | | ?????????????????????## # " """ """ | | ?????????????????????# """ """ | | ?????????????????##### %= R " """ """ | | ????????????????""""" # l% ###### "" """ | | ??????????????? """"" *%@%! # | | ?????????????? """ Y !u """ # "% """ | | ?????????? ## "Y" # " "" """ | | ?????????? u# u " " # """ "" %""" | | ?????????? ! u ## # "" "" "" | | ??????????#########+##?# """"""""" + | | ?????????? ??####????# # | | ??????????? ?# ?????# !! !# | | ??????????? ## #????# ! ###########+## | | ??????????? ???# ! #????# !! | | ??????????? ???# #????# """""! | | ???????????? ???# #????# """"" | | ????????????? #??########## ###????# """ | | ????????????"" """ "????#####?####??????# | | ???????????""" """ ###### ############# """"" | | ????????"" """ """ !|!!! ! =* + """"" | | ?????? ### ############# """ | | ????????"" """ """ ####+########?????# | | ????????????"" """ # #???????######### | | ?????????????" """ # !#???????????????? | | ????????????? # #???????????????? | | ???????????? # #???????????????? | | ???????????#######+###############???????????##### | | ?????????????????????????????????????????????# | | ?????????????????????????????????????????????# " | +----------------------------------------------------+ Best States ------------- Heat Dissipation 51 Coolant Potential 65 Energy Generation 31 Energy Capacity 520 Matter Stores 300 Matter Capacity 300 Sight Range 16 Robot Scan Range 14 Terrain Scan Density 10 Armor Coverage 225 Evasion (%) 55 Targeting Accuracy 6 Offensive Hacking 10 Item Schematics ----------------- Imp. Ion Engine | -9/Materials | Scanalyzed Robot Schematics ------------------ None Fabricated ------------ Nothing Alien Tech Used ----------------- None Achievements -------------- Quick And Dirty Challenges ------------ None Game ------ Seed OpticalTitaniumCutter Manual? 0 Play Time 00:32:14 Cumulative 10.7 hours Start 2024.04.03 @ 21:15:03 End 2024.04.03 @ 21:47:26 Sessions 1 Manual Loads 0 Difficulty Rogue Special Mode None Game No. 15 Rogue 15 Adventurer 0 Explorer 0 Win Type - Total 0 Types 0/0/0/0/0/0/0/0/0 Lore% 4 Gallery% 16 Achievement% 12 Wizard Run 0 Options --------- Layout 1 ASCII 0 Keyboard 0 Movement Mouse Keybinds 0 Fullscreen 1 Font 24/Smallcaps Map View 50x35 Zoom Use 0% Tactical HUD 0 Map Filters NONE Filters NONE Steam 1 RUN: 3290677e-4256-4112-ad9a-1cb03a3e8b17